fUSD/lending_fUSD_20240216
["ID","MTS","AMOUNT","RATE_DAILY","PERIOD"]
[314189130,1708055434760,-574.91818718,0.00038356,7]
[314189131,1708055434770,-511.59333501,0.00038356,7]
[314189132,1708055434779,-512.70733631,0.00038356,7]
[314189133,1708055434788,-150.0,0.00038356,7]
[314189134,1708055434798,-500.0,0.00038356,7]
[314189135,1708055434807,-500.0,0.00038356,7]
[314189136,1708055434816,-519.89401059,0.00038356,7]
[314189137,1708055434825,-500.0,0.00038356,7]
[314189138,1708055434835,-515.25191501,0.00038356,7]
[314189139,1708055434844,-500.0,0.00038356,7]
[314189140,1708055434853,-500.0,0.00038356,7]
[314189141,1708055434862,-500.0,0.00038356,7]
[314189142,1708055434871,-528.79244596,0.00038356,7]
[314189143,1708055434880,-500.0,0.00038356,7]
[314189144,1708055434890,-500.0,0.00038356,7]
[314189145,1708055434899,-515.0,0.00038356,7]
[314189146,1708055434909,-500.0,0.00038356,7]
[314189147,1708055434918,-500.0,0.00038356,7]
[314189148,1708055434927,-500.0,0.00038356,7]
[314189149,1708055434936,-510.61182009,0.00038356,7]
[314189150,1708055434945,-500.0,0.00038356,7]
[314189151,1708055434954,-500.0,0.00038356,7]
[314189152,1708055434963,-500.0,0.00038356,7]
[314189153,1708055434972,-602.24,0.00038356,7]
[314189154,1708055434981,-500.0,0.00038356,7]
[314189155,1708055434990,-500.0,0.00038356,7]
[314189156,1708055434999,-509.03340287,0.00038356,7]
[314189157,1708055435008,-500.0,0.00038356,7]
[314189158,1708055435018,-500.0,0.00038356,7]
[314189159,1708055435027,-500.0,0.00038356,7]
[314189160,1708055435037,-500.0,0.00038356,7]
[314189161,1708055435047,-500.0,0.00038356,7]
[314189162,1708055435056,-500.0,0.00038356,7]
[314189163,1708055435065,-511.2948838,0.00038356,7]
[314189164,1708055435075,-502.92242621,0.00038356,7]
[314189165,1708055435084,-500.0,0.00038356,7]
[314189166,1708055435093,-533.80509388,0.00038356,7]
[314189167,1708055435102,-500.0,0.00038356,7]
[314189168,1708055435112,-500.0,0.00038356,7]
[314189169,1708055435121,-166.52229406,0.00038356,7]
[314189170,1708055435130,-500.0,0.00038356,7]
[314189171,1708055435139,-521.81213562,0.00038356,7]
[314189172,1708055435148,-516.00909292,0.00038356,7]
[314189173,1708055435157,-457.17951065,0.00038356,7]
[314189174,1708055435166,-512.42828708,0.00038356,2]
[314189175,1708055435176,-500.0,0.00038356,2]
[314189176,1708055435185,-500.0,0.00038356,7]
[314189177,1708055435195,-500.0,0.00038356,7]
[314189178,1708055435205,-517.94170477,0.00038356,7]
[314189179,1708055435214,-500.0,0.00038356,7]
[314189180,1708055435223,-500.0,0.00038356,7]
[314189181,1708055435233,-431.79797305,0.00038356,7]
[314189182,1708055435416,-68.20202695,0.00038356,7]
[314189183,1708055435425,-551.62,0.00038356,7]
[314189184,1708055435435,-530.02381116,0.00038356,7]
[314189185,1708055435444,-500.0,0.00038356,7]
[314189186,1708055435453,-500.0,0.00038356,7]
[314189187,1708055435462,-508.31272882,0.00038356,7]
[314189188,1708055435472,-513.60013437,0.00038356,7]
[314189189,1708055435482,-500.0,0.00038356,7]
[314189190,1708055435491,-500.0,0.00038356,7]
[314189191,1708055435501,-500.0,0.00038356,7]
[314189192,1708055435510,-500.0,0.00038356,7]
[314189193,1708055435520,-503.21858283,0.00038356,7]
[314189194,1708055435530,-329.15391806,0.00038356,7]
[314189195,1708055435542,-170.84608194,0.00038356,7]
[314189196,1708055435551,-388.59,0.00038356,7]
[314189197,1708055435562,-501.0768721,0.00038356,7]
[314189198,1708055435572,-500.0,0.00038356,7]
[314189199,1708055435581,-500.0,0.00038356,7]
[314189200,1708055435591,-502.34489838,0.00038356,7]
[314189201,1708055435600,-500.0,0.00038356,7]
[314189202,1708055435609,-500.0,0.00038356,7]
[314189203,1708055435618,-500.0,0.00038356,7]
[314189204,1708055435627,-500.0,0.00038356,7]
[314189205,1708055435637,-500.0,0.00038356,7]
[314189206,1708055435646,-502.6170821,0.00038356,7]
[314189207,1708055435656,-647.77433024,0.00038356,7]
[314189208,1708055435665,-500.0,0.00038356,7]
[314189209,1708055435675,-627.86643541,0.00038356,7]
[314189210,1708055435684,-535.10060203,0.00038356,7]
[314189211,1708055435697,-500.0,0.00038356,7]
[314189212,1708055435707,-163.92998828,0.00038356,7]
[314189213,1708055435716,-513.88365032,0.00038356,7]
[314189214,1708055435728,-500.0,0.00038356,7]
[314189215,1708055435738,-516.19194006,0.00038356,7]
[314189216,1708055435752,-500.0,0.00038356,7]
[314189217,1708055435763,-500.0,0.00038356,7]
[314189218,1708055435772,-505.48176388,0.00038356,7]
[314189219,1708055435781,-521.59369424,0.00038356,7]
[314189220,1708055435792,-500.0,0.00038356,7]
[314189221,1708055435802,-500.0,0.00038356,7]
[314189222,1708055435811,-577.64433096,0.00038356,7]
[314189223,1708055435821,-516.21696923,0.00038356,7]
[314189224,1708055435831,-500.0,0.00038356,7]
[314189225,1708055435841,-514.52376214,0.00038356,7]
[314189226,1708055435851,-520.70533551,0.00038356,7]
[314189227,1708055435860,-500.0,0.00038356,7]
[314189228,1708055435869,-500.0,0.00038356,7]
[314189229,1708055435879,-513.33405004,0.00038356,7]
[314189230,1708055435889,-500.0,0.00038356,7]
[314189231,1708055435898,-500.0,0.00038356,7]
[314189232,1708055435908,-500.0,0.00038356,7]
[314189233,1708055435917,-500.0,0.00038356,7]
[314189234,1708055435927,-500.0,0.00038356,7]
[314189235,1708055435936,-522.0098257,0.00038356,7]
[314189236,1708055435945,-500.0,0.00038356,7]
[314189237,1708055435954,-500.0,0.00038356,7]
[314189238,1708055435964,-523.28258516,0.00038356,7]
[314189239,1708055435973,-500.0,0.00038356,7]
[314189240,1708055435982,-500.0,0.00038356,7]
[314189241,1708055435991,-6413.5,0.00038356,7]
[314189242,1708055436001,-512.26063839,0.00038356,7]
[314189243,1708055436010,-259.47,0.00038356,7]
[314189244,1708055436020,-514.17669871,0.00038356,7]
[314189245,1708055436029,-500.0,0.00038356,7]
[314189246,1708055436038,-510.98819225,0.00038356,7]
[314189247,1708055436047,-505.89335151,0.00038356,7]
[314189248,1708055436057,-500.0,0.00038356,7]
[314189249,1708055436066,-500.0,0.00038356,7]
[314189250,1708055436075,-557.40321841,0.00038356,7]
[314189251,1708055436084,-500.0,0.00038356,7]
[314189252,1708055436094,-500.0,0.00038356,7]
[314189253,1708055436103,-500.0,0.00038356,7]
[314189254,1708055436112,-519.55712607,0.00038356,7]
[314189255,1708055436122,-500.0,0.00038356,7]
[314189256,1708055436131,-514.34690859,0.00038356,7]
[314189257,1708055436141,-500.0,0.00038356,7]
[314189258,1708055436150,-500.0,0.00038356,7]
[314189259,1708055436159,-500.0,0.00038356,7]
[314189260,1708055436168,-305.24812118,0.00038356,7]
[314189261,1708055436178,-500.0,0.00038356,7]
[314189262,1708055436187,-500.0,0.00038356,7]
[314189263,1708055436196,-433.9,0.00038356,7]
[314189264,1708055436205,-500.0,0.00038356,7]
[314189265,1708055436214,-227.47,0.00038356,7]
[314189266,1708055436223,-500.0,0.00038356,7]
[314189267,1708055436232,-500.0,0.00038356,7]
[314189268,1708055436242,-500.0,0.00038356,2]
[314189269,1708055436251,-500.0,0.00038356,7]
[314189270,1708055436260,-530.07786253,0.00038356,7]
[314189271,1708055436271,-500.0,0.00038356,7]
[314189272,1708055436280,-624.82,0.00038356,7]
[314189273,1708055436289,-500.0,0.00038356,7]
[314189274,1708055436299,-500.0,0.00038356,7]
[314189275,1708055436308,-500.0,0.00038356,7]
[314189276,1708055436317,-500.0,0.00038356,7]
[314189277,1708055436327,-500.0,0.00038356,7]
[314189278,1708055436336,-500.0,0.00038356,7]
[314189279,1708055436345,-511.67095522,0.00038356,7]
[314189280,1708055436355,-500.0,0.00038356,7]
[314189281,1708055436364,-500.0,0.00038356,7]
[314189282,1708055436373,-500.0,0.00038356,7]
[314189283,1708055436382,-468.15679864,0.00038356,7]
[314189284,1708055436392,-500.0,0.00038356,7]
[314189285,1708055436401,-500.0,0.00038356,7]
[314189286,1708055436410,-500.0,0.00038356,7]
[314189287,1708055436419,-500.0,0.00038356,7]
[314189288,1708055436429,-500.0,0.00038356,7]
[314189289,1708055436437,-500.0,0.00038356,7]
[314189290,1708055436446,-500.0,0.00038356,7]
[314189291,1708055436455,-500.0,0.00038356,7]
[314189292,1708055436464,-500.0,0.00038356,7]
[314189293,1708055436473,-500.0,0.00038356,7]
[314189294,1708055436483,-500.0,0.00038356,7]
[314189295,1708055436492,-500.0,0.00038356,7]
[314189296,1708055436501,-589.15343682,0.00038356,7]
[314189297,1708055436510,-500.0,0.00038356,7]
[314189298,1708055436520,-500.0,0.00038356,7]
[314189299,1708055436529,-500.0,0.00038356,7]
[314189300,1708055436539,-500.0,0.00038356,7]
[314189301,1708055436548,-500.0,0.00038356,7]
[314189302,1708055436558,-603.91,0.00038356,7]
[314189303,1708055436568,-500.0,0.00038356,7]
[314189304,1708055436578,-500.0,0.00038356,7]
[314189305,1708055436588,-500.0,0.00038356,7]
[314189306,1708055436597,-500.0,0.00038356,7]
[314189307,1708055436606,-500.0,0.00038356,7]
[314189308,1708055436615,-500.0,0.00038356,7]
[314189309,1708055436625,-500.0,0.00038356,7]
[314189310,1708055436634,-500.0,0.00038356,7]
[314189311,1708055436643,-980.23,0.00038356,7]
[314189312,1708055436652,-500.0,0.00038356,7]
[314189313,1708055436662,-500.0,0.00038356,7]
[314189314,1708055436671,-500.0,0.00038356,7]
[314189315,1708055436680,-500.0,0.00038356,7]
[314189316,1708055436690,-500.0,0.00038356,7]
[314189317,1708055436699,-500.0,0.00038356,7]
[314189318,1708055436709,-500.0,0.00038356,7]
[314189319,1708055436718,-500.0,0.00038356,7]
[314189320,1708055436727,-500.0,0.00038356,7]
[314189321,1708055436738,-500.0,0.00038356,7]
[314189322,1708055436747,-520.45278114,0.00038356,7]
[314189323,1708055436759,-500.0,0.00038356,7]
[314189324,1708055436769,-500.0,0.00038356,7]
[314189325,1708055436778,-500.0,0.00038356,7]
[314189326,1708055436787,-500.0,0.00038356,7]
[314189327,1708055436796,-500.0,0.00038356,7]
[314189328,1708055436806,-500.0,0.00038356,7]
[314189329,1708055436815,-500.0,0.00038356,7]
[314189330,1708055436825,-500.0,0.00038356,7]
[314189331,1708055436835,-500.0,0.00038356,7]
[314189332,1708055436844,-500.0,0.00038356,7]
[314189333,1708055436853,-500.0,0.00038356,7]
[314189334,1708055436862,-500.0,0.00038356,7]
[314189335,1708055436871,-591.83,0.00038356,7]
[314189336,1708055436881,-500.0,0.00038356,7]
[314189337,1708055436891,-500.0,0.00038356,7]
[314189338,1708055436900,-500.0,0.00038356,7]
[314189339,1708055436909,-500.0,0.00038356,7]
[314189340,1708055436918,-531.02696359,0.00038356,7]
[314189341,1708055436927,-500.0,0.00038356,7]
[314189342,1708055436936,-500.0,0.00038356,7]
[314189343,1708055436945,-500.0,0.00038356,7]
[314189344,1708055436955,-500.0,0.00038356,7]
[314189345,1708055436963,-523.26,0.00038356,7]
[314189346,1708055436972,-500.0,0.00038356,7]
[314189347,1708055436982,-500.0,0.00038356,7]
[314189348,1708055436992,-500.0,0.00038356,7]
[314189349,1708055437002,-502.8,0.00038356,7]
[314189350,1708055437011,-500.0,0.00038356,7]
[314189351,1708055437021,-166.74792839,0.00038356,7]
[314189352,1708055437030,-303.4595118,0.00038356,7]
[314189353,1708055437039,-500.0,0.00038356,7]
[314189354,1708055437048,-500.0,0.00038356,7]
[314189355,1708055437057,-500.0,0.00038356,7]
[314189356,1708055437066,-500.0,0.00038356,7]
[314189357,1708055437074,-500.0,0.00038356,7]
[314189358,1708055437083,-533.17520001,0.00038356,7]
[314189359,1708055437092,-500.0,0.00038356,7]
[314189360,1708055437101,-500.0,0.00038356,7]
[314189361,1708055437113,-500.0,0.00038356,7]
[314189362,1708055437122,-500.0,0.00038356,7]
[314189363,1708055437130,-500.0,0.00038356,7]
[314189364,1708055437140,-500.0,0.00038356,7]
[314189365,1708055437149,-500.0,0.00038356,7]
[314189366,1708055437159,-500.0,0.00038356,7]
[314189367,1708055437170,-500.0,0.00038356,7]
[314189368,1708055437180,-500.0,0.00038356,7]
[314189369,1708055437189,-500.0,0.00038356,7]
[314189370,1708055437199,-500.0,0.00038356,7]
[314189371,1708055437210,-500.0,0.00038356,7]
[314189372,1708055437221,-539.09,0.00038356,7]
[314189373,1708055437231,-500.0,0.00038356,7]
[314189374,1708055437241,-500.0,0.00038356,7]
[314189375,1708055437251,-189.72838005,0.00038356,7]
[314189376,1708055437262,-732.29,0.00038356,7]
[314189377,1708055437273,-557.91,0.00038356,7]
[314189378,1708055437282,-500.0,0.00038356,7]
[314189379,1708055437292,-576.41785819,0.00038356,7]
[314189380,1708055437302,-500.0,0.00038356,7]
[314189381,1708055437311,-589.12256117,0.00038356,7]
[314189382,1708055437320,-500.0,0.00038356,7]
[314189383,1708055437329,-152.75656028,0.00038356,7]
[314189384,1708055437338,-500.0,0.00038356,7]
[314189385,1708055437349,-538.67261667,0.00038356,7]
[314189386,1708055437360,-447.78708348,0.00038356,7]
[314189387,1708055437371,-500.0,0.00038356,7]
[314189388,1708055437380,-500.0,0.00038356,7]
[314189389,1708055437389,-417.9875336,0.00038356,7]
[314189390,1708055437398,-545.15659773,0.00038356,7]
[314189391,1708055437407,-500.0,0.00038356,7]
[314189392,1708055437416,-500.0,0.00038356,7]
[314189393,1708055437425,-500.0,0.00038356,7]
[314189394,1708055437434,-500.0,0.00038356,7]
[314189395,1708055437443,-500.0,0.00038356,7]
[314189396,1708055437453,-564.31096859,0.00038356,7]
[314189397,1708055437592,-500.0,0.00038356,7]
[314189398,1708055437602,-500.0,0.00038356,7]
[314189399,1708055437612,-500.0,0.00038356,7]
[314189400,1708055437621,-1505.67,0.00038356,7]
[314189401,1708055437630,-500.0,0.00038356,7]
[314189402,1708055437641,-443.17137904,0.00038356,7]
[314189403,1708055437650,-500.0,0.00038356,7]
[314189404,1708055437660,-513.99000065,0.00038356,7]
[314189405,1708055437669,-216.28147919,0.00038356,7]
[314189406,1708055437678,-500.0,0.00038356,7]
[314189407,1708055437687,-500.0,0.00038356,7]
[314189408,1708055437697,-638.67,0.00038356,7]
[314189409,1708055437706,-500.0,0.00038356,7]
[314189410,1708055437715,-500.0,0.00038356,7]
[314189411,1708055437724,-500.0,0.00038356,7]
[314189412,1708055437734,-551.39109692,0.00038356,7]
[314189413,1708055437743,-667.52,0.00038356,7]
[314189414,1708055437755,-523.88909373,0.00038356,7]
[314189415,1708055437766,-500.0,0.00038356,7]
[314189416,1708055437775,-500.0,0.00038356,7]
[314189417,1708055437785,-500.0,0.00038356,7]
[314189418,1708055437795,-552.03936314,0.00038356,7]
[314189419,1708055437805,-500.0,0.00038356,7]
[314189420,1708055437814,-500.0,0.00038356,7]
[314189421,1708055437824,-500.0,0.00038356,7]
[314189422,1708055437835,-500.0,0.00038356,7]
[314189423,1708055437846,-500.0,0.00038356,7]
[314189424,1708055437856,-500.0,0.00038356,7]
[314189425,1708055437865,-500.0,0.00038356,7]
[314189426,1708055437877,-500.0,0.00038356,7]
[314189427,1708055437887,-500.0,0.00038356,7]
[314189428,1708055437897,-500.0,0.00038356,7]
[314189429,1708055437908,-500.0,0.00038356,7]
[314189430,1708055437917,-500.0,0.00038356,7]
[314189431,1708055437926,-500.0,0.00038356,7]
[314189432,1708055437935,-500.0,0.00038356,7]
[314189433,1708055437944,-500.0,0.00038356,7]
[314189434,1708055437953,-503.46,0.00038356,7]
[314189435,1708055437962,-529.5164767,0.00038356,7]
[314189436,1708055437971,-500.0,0.00038356,7]
[314189437,1708055437979,-545.08,0.00038356,7]
[314189438,1708055437988,-612.34,0.00038356,7]
[314189439,1708055437997,-500.0,0.00038356,7]
[314189440,1708055438006,-500.0,0.00038356,7]
[314189441,1708055438016,-575.41845283,0.00038356,7]
[314189442,1708055438025,-500.0,0.00038356,7]
[314189443,1708055438034,-530.62392186,0.00038356,7]
[314189444,1708055438043,-500.0,0.00038356,7]
[314189445,1708055438053,-1147.58,0.00038356,7]
[314189446,1708055438062,-500.0,0.00038356,7]
[314189447,1708055438070,-500.0,0.00038356,7]
[314189448,1708055438079,-500.0,0.00038356,7]
[314189449,1708055438089,-596.00071743,0.00038356,7]
[314189450,1708055438097,-548.48521828,0.00038356,7]
[314189452,1708055438107,-500.0,0.00038356,7]
[314189453,1708055438116,-631.60809425,0.00038356,7]
[314189454,1708055438125,-500.0,0.00038356,7]
[314189455,1708055438133,-500.0,0.00038356,7]
[314189456,1708055438143,-500.0,0.00038356,7]
[314189457,1708055438152,-500.0,0.00038356,7]
[314189458,1708055438161,-500.0,0.00038356,7]
[314189460,1708055438170,-539.51129351,0.00038356,7]
[314189462,1708055438179,-500.0,0.00038356,7]
[314189464,1708055438188,-500.0,0.00038356,7]
[314189465,1708055438198,-537.30758781,0.00038356,7]
[314189466,1708055438207,-239.71010732,0.00038356,7]
[314189467,1708055438216,-500.0,0.00038356,7]
[314189468,1708055438225,-500.0,0.00038356,7]
[314189469,1708055438234,-576.21698247,0.00038356,7]
[314189470,1708055438242,-500.0,0.00038356,7]
[314189471,1708055438251,-500.0,0.00038356,7]
[314189472,1708055438260,-500.0,0.00038356,7]
[314189473,1708055438270,-534.95215821,0.00038356,7]
[314189474,1708055438280,-568.00669328,0.00038356,7]
[314189476,1708055438289,-500.0,0.00038356,7]
[314189477,1708055438298,-500.0,0.00038356,7]
[314189478,1708055438306,-500.0,0.00038356,7]
[314189479,1708055438315,-1277.64,0.00038356,7]
[314189481,1708055438327,-541.22936684,0.00038356,7]
[314189483,1708055438337,-500.0,0.00038356,7]
[314189485,1708055438345,-503.18980348,0.00038356,7]
[314189487,1708055438355,-500.0,0.00038356,7]
[314189489,1708055438364,-500.0,0.00038356,7]
[314189490,1708055438373,-500.0,0.00038356,7]
[314189491,1708055438383,-500.0,0.00038356,7]
[314189492,1708055438392,-5457.67,0.00038356,7]
[314189493,1708055438402,-500.0,0.00038356,7]
[314189494,1708055438411,-500.0,0.00038356,7]
[314189495,1708055438422,-500.0,0.00038356,7]
[314189496,1708055438433,-500.0,0.00038356,7]
[314189497,1708055438443,-500.0,0.00038356,7]
[314189498,1708055438452,-500.0,0.00038356,7]
[314189499,1708055438462,-500.0,0.00038356,7]
[314189500,1708055438473,-500.0,0.00038356,7]
[314189501,1708055438483,-500.0,0.00038356,7]
[314189502,1708055438495,-500.0,0.00038356,7]
[314189503,1708055438505,-500.0,0.00038356,7]
[314189504,1708055438514,-572.0,0.00038356,7]
[314189505,1708055438524,-500.0,0.00038356,7]
[314189506,1708055438533,-500.0,0.00038356,7]
[314189507,1708055438542,-500.0,0.00038356,7]
[314189508,1708055438551,-500.0,0.00038356,7]
[314189509,1708055438561,-361.09851034,0.00038356,7]
[314189510,1708055438571,-342.0,0.00038356,7]
[314189511,1708055438580,-500.0,0.00038356,7]
[314189512,1708055438589,-537.13,0.00038356,7]
[314189513,1708055438599,-401.0,0.00038356,7]
[314189514,1708055438609,-500.0,0.00038356,7]
[314189515,1708055438618,-586.42154646,0.00038356,7]
[314189516,1708055438627,-500.0,0.00038356,7]
[314189517,1708055438636,-583.52818269,0.00038356,7]
[314189518,1708055438645,-500.0,0.00038356,7]
[314189519,1708055438654,-500.0,0.00038356,7]
[314189520,1708055438664,-500.0,0.00038356,7]
[314189521,1708055438673,-250.0,0.00038356,7]
[314189522,1708055438682,-500.0,0.00038356,7]
[314189523,1708055438691,-500.0,0.00038356,7]
[314189524,1708055438701,-500.0,0.00038356,7]
[314189525,1708055438710,-500.0,0.00038356,7]
[314189526,1708055438719,-500.0,0.00038356,7]
[314189527,1708055438728,-548.79905732,0.00038356,7]
[314189528,1708055438737,-500.0,0.00038356,7]
[314189529,1708055438747,-500.0,0.00038356,7]
[314189530,1708055438757,-500.0,0.00038356,7]
[314189531,1708055438767,-500.0,0.00038356,7]
[314189532,1708055438777,-500.0,0.00038356,7]
[314189533,1708055438786,-543.39,0.00038356,7]
[314189534,1708055438797,-155.04,0.00038356,2]
[314189535,1708055438807,-1953.44,0.00038356,15]
[314189536,1708055438816,-186.6,0.00038378,2]
[314189537,1708055438826,-3365.09819918,0.00038495,2]
[314189538,1708055438836,-507.37967952,0.00038499,10]
[314189539,1708055438845,-305.7390392,0.00038527,2]
[314189540,1708055438855,-382.88440986,0.0003853,2]
[314189541,1708055438863,-522.20524102,0.0003853,2]
[314189542,1708055438873,-55555.0,0.0003853,3]
[314189543,1708055438882,-3000.0,0.000386,36]
[314189544,1708055438890,-379.44,0.000386,2]
[314189545,1708055438900,-3000.0,0.0003861,36]
[314189546,1708055438909,-5658.163074,0.0003862,36]
[314189547,1708055438919,-473.4040225,0.0003863,7]
[314189548,1708055438928,-500.0,0.0003863,7]
[314189549,1708055438937,-570.56386932,0.0003863,7]
[314189550,1708055438945,-426.26570856,0.0003863,7]
[314189551,1708055438954,-533.74021359,0.0003863,7]
[314189552,1708055438963,-500.0,0.0003863,2]
[314189553,1708055438972,-228.09230357,0.0003863,7]
[314189554,1708055438981,-500.0,0.0003863,7]
[314189555,1708055438990,-500.0,0.0003863,7]
[314189556,1708055438999,-500.0,0.0003863,7]
[314189557,1708055439009,-500.0,0.0003863,7]
[314189558,1708055439019,-500.0,0.0003863,7]
[314189559,1708055439029,-182.64715384,0.0003863,7]
[314189560,1708055439040,-500.0,0.0003863,7]
[314189561,1708055439051,-500.0,0.0003863,7]
[314189562,1708055439065,-500.0,0.0003863,7]
[314189563,1708055439074,-1849.31,0.0003863,7]
[314189564,1708055439083,-500.0,0.0003863,7]
[314189565,1708055439093,-500.0,0.0003863,7]
[314189566,1708055439104,-500.0,0.0003863,7]
[314189567,1708055439114,-210.03716783,0.0003863,7]
[314189568,1708055439126,-318.17986544,0.0003863,7]
[314189569,1708055439137,-575.85128705,0.0003863,7]
[314189570,1708055439146,-500.0,0.0003863,7]
[314189571,1708055439156,-500.0,0.0003863,7]
[314189572,1708055439165,-511.96720949,0.0003863,7]
[314189573,1708055439175,-514.92407078,0.0003863,7]
[314189574,1708055439185,-536.7190586,0.0003863,7]
[314189575,1708055439195,-237.93796635,0.0003863,7]
[314189576,1708055439205,-500.0,0.0003863,7]
[314189577,1708055439214,-500.0,0.0003863,7]
[314189578,1708055439223,-520.60988991,0.0003863,2]
[314189579,1708055439232,-150.0,0.0003863,7]
[314189580,1708055439244,-500.0,0.0003863,7]
[314189581,1708055439254,-500.0,0.0003863,7]
[314189582,1708055439263,-500.0,0.0003863,7]
[314189583,1708055439274,-500.0,0.0003863,7]
[314189584,1708055439283,-530.82609544,0.0003863,7]
[314189585,1708055439292,-500.0,0.0003863,7]
[314189586,1708055439303,-503.48227066,0.0003863,7]
[314189587,1708055439314,-500.0,0.0003863,7]
[314189588,1708055439322,-500.0,0.0003863,7]
[314189589,1708055439331,-500.0,0.0003863,7]
[314189590,1708055439341,-500.0,0.0003863,7]
[314189591,1708055439350,-633.04,0.0003863,7]
[314189592,1708055439359,-187.81621578,0.0003863,2]
[314189593,1708055439369,-500.0,0.0003863,7]
[314189594,1708055439380,-500.0,0.0003863,7]
[314189595,1708055439390,-500.0,0.0003863,7]
[314189596,1708055439400,-500.0,0.0003863,7]
[314189597,1708055439410,-500.0,0.0003863,7]
[314189598,1708055439420,-449.0322509,0.0003863,7]
[314189599,1708055439430,-500.0,0.0003863,7]
[314189600,1708055439440,-516.83861742,0.0003863,7]
[314189601,1708055439449,-500.0,0.0003863,7]
[314189602,1708055439458,-500.0,0.0003863,7]
[314189603,1708055439468,-500.0,0.0003863,7]
[314189604,1708055439477,-500.0,0.0003863,7]
[314189605,1708055439486,-500.0,0.0003863,7]
[314189606,1708055439495,-524.83422328,0.0003863,7]
[314189607,1708055439504,-523.3051655,0.0003863,7]
[314189608,1708055439513,-558.66390981,0.0003863,7]
[314189609,1708055439523,-500.0,0.0003863,7]
[314189610,1708055439533,-192.00508336,0.0003863,7]
[314189611,1708055439542,-500.0,0.0003863,7]
[314189612,1708055439551,-500.0,0.0003863,7]
[314189613,1708055439561,-500.0,0.0003863,7]
[314189614,1708055439570,-500.0,0.0003863,7]
[314189615,1708055439580,-500.0,0.0003863,7]
[314189616,1708055439589,-500.0,0.0003863,7]
[314189617,1708055439598,-500.0,0.0003863,7]
[314189618,1708055439608,-570.42069965,0.0003863,7]
[314189619,1708055439618,-500.0,0.0003863,7]
[314189620,1708055439627,-6413.5,0.0003863,7]
[314189621,1708055439636,-603.22284465,0.0003863,7]
[314189622,1708055439645,-528.021472,0.0003863,7]
[314189623,1708055439655,-500.0,0.0003863,7]
[314189624,1708055439664,-500.0,0.0003863,7]
[314189625,1708055439673,-277.55719654,0.0003863,7]
[314189626,1708055439682,-500.0,0.0003863,7]
[314189627,1708055439691,-500.0,0.0003863,7]
[314189628,1708055439700,-500.0,0.0003863,7]
[314189629,1708055439709,-500.0,0.0003863,7]
[314189630,1708055439719,-500.0,0.0003863,7]
[314189631,1708055439728,-500.0,0.0003863,2]
[314189632,1708055439737,-500.0,0.0003863,7]
[314189633,1708055439747,-500.0,0.0003863,7]
[314189634,1708055439759,-500.0,0.0003863,7]
[314189635,1708055439769,-500.0,0.0003863,7]
[314189636,1708055439778,-432.50398458,0.0003863,7]
[314189637,1708055439787,-500.0,0.0003863,7]
[314189638,1708055439796,-500.0,0.0003863,7]
[314189639,1708055439806,-500.0,0.0003863,7]